[Event "*** SCC Grand Prix: Titled Tuesday Blitz"]
[Site "Chess.com"]
[Date "2020.07.07"]
[Round "5"]
[White "diablanni"]
[Black "SARGISMV"]
[Result "0-1"]
[WhiteElo "2306"]
[BlackElo "2481"]
[TimeControl "180+1"]
[EndTime "10:55:29 PDT"]
[Termination "SARGISMV won on time"]

1. e4 {[%clk 0:03:00]} 1... e6 {[%clk 0:02:59.9]} 2. d4 {[%clk 0:02:58.1]} 2...
d5 {[%clk 0:02:59.6]} 3. Nc3 {[%clk 0:02:56.8]} 3... Bb4 {[%clk 0:02:58.8]} 4.
e5 {[%clk 0:02:56.2]} 4... c5 {[%clk 0:02:58.8]} 5. a3 {[%clk 0:02:55.6]} 5...
Bxc3+ {[%clk 0:02:59.4]} 6. bxc3 {[%clk 0:02:55.1]} 6... Ne7 {[%clk 0:03:00.3]}
7. Qg4 {[%clk 0:02:54.7]} 7... O-O {[%clk 0:03:00.6]} 8. Bd3 {[%clk 0:02:45.3]}
8... Nbc6 {[%clk 0:02:58.7]} 9. Bh6 {[%clk 0:02:30.2]} 9... Ng6 {[%clk
0:02:56.7]} 10. Bd2 {[%clk 0:02:13.7]} 10... Qa5 {[%clk 0:02:37.2]} 11. h4
{[%clk 0:02:07.8]} 11... Qa4 {[%clk 0:02:37]} 12. h5 {[%clk 0:01:56.5]} 12...
Ngxe5 {[%clk 0:02:35.3]} 13. Qf4 {[%clk 0:01:20.1]} 13... cxd4 {[%clk
0:02:27.8]} 14. h6 {[%clk 0:01:18.3]} 14... Nxd3+ {[%clk 0:02:25.7]} 15. cxd3
{[%clk 0:01:17.8]} 15... f6 {[%clk 0:02:02.8]} 16. hxg7 {[%clk 0:01:12.7]} 16...
Rf7 {[%clk 0:01:55.2]} 17. Qh4 {[%clk 0:01:09]} 17... Rxg7 {[%clk 0:01:41.6]}
18. Qxf6 {[%clk 0:01:09]} 18... Bd7 {[%clk 0:01:29.9]} 19. Nf3 {[%clk
0:00:58.6]} 19... Rf8 {[%clk 0:01:18.7]} 20. Qh4 {[%clk 0:00:51.6]} 20... Qc2
{[%clk 0:01:12.6]} 21. Bh6 {[%clk 0:00:13]} 21... Qxc3+ {[%clk 0:01:10.3]} 22.
Ke2 {[%clk 0:00:13.3]} 22... Qc2+ {[%clk 0:00:42.4]} 23. Nd2 {[%clk 0:00:13.4]}
23... Ne5 {[%clk 0:00:42.5]} 24. Rh3 {[%clk 0:00:07.6]} 24... Rg4 {[%clk
0:00:36.4]} 25. Qh5 {[%clk 0:00:06.6]} 25... Rf5 {[%clk 0:00:31.7]} 26. Bg5
{[%clk 0:00:02.5]} 26... Rfxg5 {[%clk 0:00:24.8]} 27. Qxh7+ {[%clk 0:00:02.8]}
27... Kf8 {[%clk 0:00:25.1]} 28. Qh8+ {[%clk 0:00:02.2]} 28... Kf7 {[%clk
0:00:21.5]} 29. Rh7+ {[%clk 0:00:02]} 29... Rg7 {[%clk 0:00:21.7]} 30. Rxg7+
{[%clk 0:00:01.6]} 30... Rxg7 {[%clk 0:00:22.6]} 31. Qh5+ {[%clk 0:00:01.8]}
31... Ng6 {[%clk 0:00:21.3]} 0-1

[Event "*** SCC Grand Prix: Titled Tuesday Blitz"]
[Site "Chess.com"]
[Date "2020.07.07"]
[Round "5"]
[White "okriak"]
[Black "mr65"]
[Result "1-0"]
[WhiteElo "2712"]
[BlackElo "2104"]
[TimeControl "180+1"]
[EndTime "10:55:29 PDT"]
[Termination "okriak won by resignation"]

1. e4 {[%clk 0:02:56]} 1... e5 {[%clk 0:02:59]} 2. Nf3 {[%clk 0:02:55.5]} 2...
Nc6 {[%clk 0:02:59]} 3. Bb5 {[%clk 0:02:55.8]} 3... a6 {[%clk 0:02:58.2]} 4. Ba4
{[%clk 0:02:55.8]} 4... Nf6 {[%clk 0:02:58.1]} 5. O-O {[%clk 0:02:55.3]} 5...
Be7 {[%clk 0:02:58]} 6. Re1 {[%clk 0:02:54.4]} 6... b5 {[%clk 0:02:57.8]} 7. Bb3
{[%clk 0:02:54.7]} 7... O-O {[%clk 0:02:57.6]} 8. c3 {[%clk 0:02:54.8]} 8... d5
{[%clk 0:02:56.9]} 9. exd5 {[%clk 0:02:54.9]} 9... Nxd5 {[%clk 0:02:56.8]} 10.
Nxe5 {[%clk 0:02:55.2]} 10... Nxe5 {[%clk 0:02:56.8]} 11. Rxe5 {[%clk
0:02:55.8]} 11... c6 {[%clk 0:02:56.9]} 12. Bxd5 {[%clk 0:02:56.1]} 12... cxd5
{[%clk 0:02:54.5]} 13. d4 {[%clk 0:02:56.4]} 13... Bd6 {[%clk 0:02:54.2]} 14.
Re3 {[%clk 0:02:56.4]} 14... Qh4 {[%clk 0:02:44.3]} 15. h3 {[%clk 0:02:56.3]}
15... f5 {[%clk 0:02:31.3]} 16. Qf3 {[%clk 0:02:55.4]} 16... Bb7 {[%clk
0:02:15.6]} 17. Nd2 {[%clk 0:02:55.2]} 17... Rae8 {[%clk 0:02:14.6]} 18. Nf1
{[%clk 0:02:47.1]} 18... f4 {[%clk 0:02:10.5]} 19. Rxe8 {[%clk 0:02:46.3]} 19...
Rxe8 {[%clk 0:02:09.7]} 20. Bd2 {[%clk 0:02:46.9]} 20... Qf6 {[%clk 0:01:56.8]}
21. Re1 {[%clk 0:02:35.7]} 21... Rxe1 {[%clk 0:01:55.4]} 22. Bxe1 {[%clk
0:02:35.9]} 22... Qf5 {[%clk 0:01:55]} 23. Bd2 {[%clk 0:02:33.7]} 23... Bc8
{[%clk 0:01:33.2]} 24. Bc1 {[%clk 0:02:27.6]} 24... Be6 {[%clk 0:01:30.5]} 25.
a3 {[%clk 0:02:26.4]} 25... g6 {[%clk 0:01:26.2]} 26. Qe2 {[%clk 0:02:24.9]}
26... Qe4 {[%clk 0:01:24.1]} 27. Qd1 {[%clk 0:02:10.3]} 27... f3 {[%clk
0:01:13.3]} 28. Nd2 {[%clk 0:02:03.7]} 28... Qe2 {[%clk 0:01:10.6]} 29. Qf1
{[%clk 0:02:01.4]} 29... Qxf1+ {[%clk 0:01:08.7]} 30. Nxf1 {[%clk 0:01:57.4]}
30... fxg2 {[%clk 0:01:08.1]} 31. Kxg2 {[%clk 0:01:58.1]} 31... Kf7 {[%clk
0:01:06.9]} 32. Nd2 {[%clk 0:01:51.5]} 32... Bf4 {[%clk 0:01:04.9]} 33. Nb3
{[%clk 0:01:51.1]} 33... Bd6 {[%clk 0:01:02]} 34. Nc5 {[%clk 0:01:49]} 34... Bc8
{[%clk 0:00:54.5]} 35. Nd3 {[%clk 0:01:41.5]} 35... h5 {[%clk 0:00:52.4]} 36.
Bf4 {[%clk 0:01:40.7]} 36... Bxf4 {[%clk 0:00:40.7]} 37. Nxf4 {[%clk 0:01:40.3]}
37... Bf5 {[%clk 0:00:39.9]} 38. h4 {[%clk 0:01:38.8]} 38... Bc2 {[%clk
0:00:32]} 39. Kg3 {[%clk 0:01:37.5]} 39... Bb3 {[%clk 0:00:31.4]} 40. Nd3 {[%clk
0:01:37.1]} 40... a5 {[%clk 0:00:27.8]} 41. Kf4 {[%clk 0:01:36.1]} 41... Kf6
{[%clk 0:00:25.6]} 42. Nc5 {[%clk 0:01:32.2]} 42... Bc4 {[%clk 0:00:23]} 43. b3
{[%clk 0:01:31.6]} 43... Be2 {[%clk 0:00:20.8]} 44. Nb7 {[%clk 0:01:29.9]} 44...
g5+ {[%clk 0:00:19.8]} 45. hxg5+ {[%clk 0:01:29.2]} 45... Kg6 {[%clk 0:00:19.8]}
46. Nxa5 {[%clk 0:01:29]} 46... h4 {[%clk 0:00:19.2]} 47. Nc6 {[%clk 0:01:28.4]}
47... h3 {[%clk 0:00:17.8]} 48. Ne5+ {[%clk 0:01:23.7]} 48... Kh5 {[%clk
0:00:16.9]} 49. Kg3 {[%clk 0:01:23.7]} 49... Kxg5 {[%clk 0:00:15.4]} 50. Kxh3
{[%clk 0:01:18.3]} 50... Kf4 {[%clk 0:00:15]} 51. Kg2 {[%clk 0:01:18]} 51... Ke4
{[%clk 0:00:14]} 52. a4 {[%clk 0:01:17.2]} 52... bxa4 {[%clk 0:00:12.5]} 53.
bxa4 {[%clk 0:01:17.1]} 53... Ba6 {[%clk 0:00:11.6]} 54. Kg3 {[%clk 0:01:16.6]}
54... Kf5 {[%clk 0:00:10.1]} 55. Kf3 {[%clk 0:01:16]} 1-0

[Event "*** SCC Grand Prix: Titled Tuesday Blitz"]
[Site "Chess.com"]
[Date "2020.07.07"]
[Round "5"]
[White "snap_man"]
[Black "sertalzin"]
[Result "1-0"]
[WhiteElo "2293"]
[BlackElo "2019"]
[TimeControl "180+1"]
[EndTime "10:55:30 PDT"]
[Termination "snap_man won on time"]

1. Nf3 {[%clk 0:02:52.6]} 1... d5 {[%clk 0:02:58.9]} 2. g3 {[%clk 0:02:52.4]}
2... Nf6 {[%clk 0:02:56.7]} 3. Bg2 {[%clk 0:02:52.7]} 3... c6 {[%clk 0:02:57]}
4. b3 {[%clk 0:02:53.1]} 4... Bf5 {[%clk 0:02:57.4]} 5. Bb2 {[%clk 0:02:53.3]}
5... h6 {[%clk 0:02:57.2]} 6. O-O {[%clk 0:02:53.4]} 6... e6 {[%clk 0:02:57.6]}
7. d3 {[%clk 0:02:53.8]} 7... Be7 {[%clk 0:02:58]} 8. Re1 {[%clk 0:02:50.4]}
8... O-O {[%clk 0:02:58.2]} 9. Nfd2 {[%clk 0:02:50.2]} 9... a5 {[%clk 0:02:47]}
10. e4 {[%clk 0:02:49.7]} 10... Bh7 {[%clk 0:02:42.2]} 11. e5 {[%clk 0:02:41.9]}
11... Nfd7 {[%clk 0:02:41.1]} 12. f4 {[%clk 0:02:42]} 12... c5 {[%clk
0:02:37.2]} 13. c4 {[%clk 0:02:39.8]} 13... dxc4 {[%clk 0:02:25.3]} 14. Nxc4
{[%clk 0:02:32.9]} 14... Qc7 {[%clk 0:02:13.5]} 15. Nc3 {[%clk 0:02:31.7]} 15...
Nc6 {[%clk 0:02:06.2]} 16. Nb5 {[%clk 0:02:29.7]} 16... Qb8 {[%clk 0:01:46.9]}
17. Nbd6 {[%clk 0:02:06.9]} 17... Ra6 {[%clk 0:01:03.4]} 18. a4 {[%clk
0:02:01.4]} 18... Nd4 {[%clk 0:00:52.7]} 19. Bxd4 {[%clk 0:01:49.2]} 19... cxd4
{[%clk 0:00:51.6]} 20. Nxb7 {[%clk 0:01:43.4]} 20... Nc5 {[%clk 0:00:20.5]} 21.
Nxc5 {[%clk 0:01:21.4]} 21... Bxc5 {[%clk 0:00:19.7]} 22. Rc1 {[%clk 0:01:21.2]}
22... Bb4 {[%clk 0:00:18.9]} 23. Re2 {[%clk 0:01:20.9]} 23... Bc3 {[%clk
0:00:19.8]} 24. Qc2 {[%clk 0:01:16.4]} 24... Rd8 {[%clk 0:00:18.4]} 25. Rf1
{[%clk 0:01:13.3]} 25... Qc7 {[%clk 0:00:17.7]} 26. g4 {[%clk 0:01:11.6]} 26...
f6 {[%clk 0:00:14.3]} 27. f5 {[%clk 0:01:09.4]} 27... fxe5 {[%clk 0:00:12.9]}
28. Rxe5 {[%clk 0:01:06.1]} 28... exf5 {[%clk 0:00:11.6]} 29. gxf5 {[%clk
0:01:05.8]} 29... Rf8 {[%clk 0:00:10.9]} 30. Qe2 {[%clk 0:00:59.6]} 30... Raf6
{[%clk 0:00:10.5]} 31. Bd5+ {[%clk 0:00:57]} 31... Kh8 {[%clk 0:00:09.4]} 32.
Be6 {[%clk 0:00:57.1]} 32... Bxf5 {[%clk 0:00:06.6]} 33. Bxf5 {[%clk 0:00:48.5]}
33... g6 {[%clk 0:00:05.1]} 34. Bh3 {[%clk 0:00:48.5]} 34... Rxf1+ {[%clk
0:00:04.3]} 35. Bxf1 {[%clk 0:00:48.6]} 35... Rxf1+ {[%clk 0:00:04.5]} 36. Qxf1
{[%clk 0:00:47.9]} 1-0

[Event "*** SCC Grand Prix: Titled Tuesday Blitz"]
[Site "Chess.com"]
[Date "2020.07.07"]
[Round "5"]
[White "aliba25"]
[Black "Sam_ChessMood"]
[Result "0-1"]
[WhiteElo "2614"]
[BlackElo "2843"]
[TimeControl "180+1"]
[EndTime "10:55:31 PDT"]
[Termination "Sam_ChessMood won by resignation"]

1. Nf3 {[%clk 0:03:00.9]} 1... d5 {[%clk 0:02:59.1]} 2. e3 {[%clk 0:03:00.6]}
2... Nf6 {[%clk 0:02:56.8]} 3. c4 {[%clk 0:03:01.2]} 3... e6 {[%clk 0:02:56]} 4.
b3 {[%clk 0:03:01.1]} 4... Be7 {[%clk 0:02:51.4]} 5. Bb2 {[%clk 0:03:01]} 5...
O-O {[%clk 0:02:51.2]} 6. Nc3 {[%clk 0:02:55.9]} 6... dxc4 {[%clk 0:02:50.5]} 7.
bxc4 {[%clk 0:02:55.3]} 7... c5 {[%clk 0:02:50.2]} 8. g3 {[%clk 0:02:53.9]} 8...
b6 {[%clk 0:02:49.1]} 9. Bg2 {[%clk 0:02:54]} 9... Bb7 {[%clk 0:02:49.4]} 10.
O-O {[%clk 0:02:54.6]} 10... Nc6 {[%clk 0:02:44.6]} 11. Qe2 {[%clk 0:02:48.5]}
11... Rc8 {[%clk 0:02:24.1]} 12. Rfd1 {[%clk 0:02:45.2]} 12... Na5 {[%clk
0:02:15.3]} 13. Ne1 {[%clk 0:02:40]} 13... Bxg2 {[%clk 0:02:11.9]} 14. Nxg2
{[%clk 0:02:40.9]} 14... Qd7 {[%clk 0:01:56.9]} 15. f4 {[%clk 0:02:39.3]} 15...
Qb7 {[%clk 0:01:53]} 16. d3 {[%clk 0:02:32.6]} 16... a6 {[%clk 0:01:52.8]} 17.
a4 {[%clk 0:02:23.2]} 17... Nc6 {[%clk 0:01:52.6]} 18. g4 {[%clk 0:02:22.1]}
18... Na7 {[%clk 0:01:22.7]} 19. f5 {[%clk 0:02:18]} 19... exf5 {[%clk 0:01:18]}
20. gxf5 {[%clk 0:02:18.9]} 20... b5 {[%clk 0:01:17.3]} 21. axb5 {[%clk
0:02:14.5]} 21... axb5 {[%clk 0:01:17.3]} 22. Nf4 {[%clk 0:02:09.5]} 22... Bd6
{[%clk 0:00:55.3]} 23. Rxa7 {[%clk 0:01:52.1]} 23... Qxa7 {[%clk 0:00:54.8]} 24.
Nxb5 {[%clk 0:01:52.2]} 24... Qe7 {[%clk 0:00:54.3]} 25. Nxd6 {[%clk 0:01:12.4]}
25... Qxd6 {[%clk 0:00:55.2]} 26. Qg2 {[%clk 0:01:13]} 26... Kh8 {[%clk
0:00:49.4]} 27. Nd5 {[%clk 0:01:10.5]} 27... Rg8 {[%clk 0:00:42.5]} 28. Kh1
{[%clk 0:01:08.3]} 28... Nxd5 {[%clk 0:00:36.8]} 29. cxd5 {[%clk 0:01:09.2]}
29... f6 {[%clk 0:00:36.8]} 30. e4 {[%clk 0:01:08.7]} 30... c4 {[%clk
0:00:34.7]} 31. dxc4 {[%clk 0:00:39]} 31... Rxc4 {[%clk 0:00:35.6]} 32. Re1
{[%clk 0:00:39.2]} 32... Qc5 {[%clk 0:00:26.2]} 33. Re2 {[%clk 0:00:23.8]} 33...
Rb8 {[%clk 0:00:26.1]} 34. h3 {[%clk 0:00:19.8]} 34... Rxb2 {[%clk 0:00:25.6]}
35. Rxb2 {[%clk 0:00:19.8]} 35... Rc1+ {[%clk 0:00:25.9]} 36. Kh2 {[%clk
0:00:20.4]} 36... Qd6+ {[%clk 0:00:26.2]} 37. Qg3 {[%clk 0:00:20.1]} 37... Rh1+
{[%clk 0:00:26.3]} 38. Kxh1 {[%clk 0:00:20.5]} 38... Qxg3 {[%clk 0:00:26.3]} 0-1

[Event "*** SCC Grand Prix: Titled Tuesday Blitz"]
[Site "Chess.com"]
[Date "2020.07.07"]
[Round "5"]
[White "regular_legs"]
[Black "ichangedmyname_yup"]
[Result "0-1"]
[WhiteElo "2516"]
[BlackElo "2399"]
[TimeControl "180+1"]
[EndTime "10:55:31 PDT"]
[Termination "ichangedmyname_yup won by resignation"]

1. d4 {[%clk 0:02:58.7]} 1... Nf6 {[%clk 0:02:59.5]} 2. c4 {[%clk 0:02:58.2]}
2... e6 {[%clk 0:03:00]} 3. Nf3 {[%clk 0:02:58.1]} 3... c5 {[%clk 0:03:00.4]} 4.
Nc3 {[%clk 0:02:57.7]} 4... cxd4 {[%clk 0:03:00]} 5. Nxd4 {[%clk 0:02:58.6]}
5... b6 {[%clk 0:03:00.2]} 6. e4 {[%clk 0:02:56.7]} 6... d6 {[%clk 0:02:58.7]}
7. Be3 {[%clk 0:02:55.8]} 7... a6 {[%clk 0:02:59]} 8. Be2 {[%clk 0:02:54.8]}
8... Bb7 {[%clk 0:02:59.6]} 9. f3 {[%clk 0:02:54.8]} 9... Be7 {[%clk 0:03:00.1]}
10. O-O {[%clk 0:02:54.6]} 10... O-O {[%clk 0:03:00.8]} 11. Qd2 {[%clk
0:02:53.5]} 11... Qc7 {[%clk 0:03:01.4]} 12. Rfc1 {[%clk 0:02:51.2]} 12... Nbd7
{[%clk 0:03:01.7]} 13. b4 {[%clk 0:02:50.9]} 13... Rac8 {[%clk 0:03:01.7]} 14.
Rc2 {[%clk 0:02:49.5]} 14... Qb8 {[%clk 0:03:02.3]} 15. a3 {[%clk 0:02:49.4]}
15... Bd8 {[%clk 0:03:03]} 16. Kh1 {[%clk 0:02:48.7]} 16... Bc7 {[%clk
0:03:03.6]} 17. Bg1 {[%clk 0:02:49.3]} 17... h5 {[%clk 0:03:00.4]} 18. Rb1
{[%clk 0:02:48.4]} 18... h4 {[%clk 0:03:00.5]} 19. h3 {[%clk 0:02:48.4]} 19...
Ne5 {[%clk 0:02:57.2]} 20. Bf2 {[%clk 0:02:41.3]} 20... Ng6 {[%clk 0:02:56.5]}
21. Bd3 {[%clk 0:02:15.3]} 21... Nh5 {[%clk 0:02:49.6]} 22. Nce2 {[%clk
0:02:14.8]} 22... Rfe8 {[%clk 0:02:38.6]} 23. Nb3 {[%clk 0:02:05.2]} 23... d5
{[%clk 0:01:40.8]} 24. exd5 {[%clk 0:02:04.7]} 24... exd5 {[%clk 0:01:41.7]} 25.
c5 {[%clk 0:02:04.2]} 25... Ngf4 {[%clk 0:01:40.9]} 26. Nbd4 {[%clk 0:01:57.4]}
26... Be5 {[%clk 0:01:18.2]} 27. c6 {[%clk 0:01:48.5]} 27... Ba8 {[%clk
0:01:12.7]} 28. Bxa6 {[%clk 0:01:45.9]} 28... Rc7 {[%clk 0:01:04.2]} 29. Bd3
{[%clk 0:01:37.2]} 29... Nxe2 {[%clk 0:00:57.9]} 30. Bxe2 {[%clk 0:01:27.4]}
30... Bf4 {[%clk 0:00:52.8]} 31. Qd1 {[%clk 0:01:23.6]} 31... Bg3 {[%clk
0:00:49.9]} 32. Bxg3 {[%clk 0:01:07.1]} 32... Nxg3+ {[%clk 0:00:50.8]} 33. Kg1
{[%clk 0:01:07.8]} 33... Rce7 {[%clk 0:00:50.6]} 34. b5 {[%clk 0:01:05.5]} 34...
Qf4 {[%clk 0:00:50.4]} 35. Rb3 {[%clk 0:01:01.4]} 35... Re3 {[%clk 0:00:37.1]}
36. Qd2 {[%clk 0:00:32.2]} 36... Rxe2 {[%clk 0:00:28.6]} 37. Qxe2 {[%clk
0:00:23]} 37... Qxd4+ {[%clk 0:00:19]} 38. Qf2 {[%clk 0:00:22.8]} 38... Re1+
{[%clk 0:00:16]} 0-1

[Event "*** SCC Grand Prix: Titled Tuesday Blitz"]
[Site "Chess.com"]
[Date "2020.07.07"]
[Round "5"]
[White "KuzubovYuriy"]
[Black "Nf3c5"]
[Result "1-0"]
[WhiteElo "2850"]
[BlackElo "2616"]
[TimeControl "180+1"]
[EndTime "10:55:32 PDT"]
[Termination "KuzubovYuriy won by resignation"]

1. d4 {[%clk 0:03:00.9]} 1... Nf6 {[%clk 0:02:58.1]} 2. c4 {[%clk 0:02:59.8]}
2... g6 {[%clk 0:02:57.4]} 3. Nc3 {[%clk 0:02:59]} 3... d5 {[%clk 0:02:54]} 4.
cxd5 {[%clk 0:02:58.1]} 4... Nxd5 {[%clk 0:02:54.9]} 5. Bd2 {[%clk 0:02:58.1]}
5... Bg7 {[%clk 0:02:53.8]} 6. e4 {[%clk 0:02:58]} 6... Nb6 {[%clk 0:02:54.3]}
7. Be3 {[%clk 0:02:57.2]} 7... O-O {[%clk 0:02:44.8]} 8. Bb5 {[%clk 0:02:55.8]}
8... a6 {[%clk 0:02:38.4]} 9. Be2 {[%clk 0:02:54.8]} 9... Nc6 {[%clk 0:02:33]}
10. d5 {[%clk 0:02:28.5]} 10... Na5 {[%clk 0:02:25]} 11. Bd4 {[%clk 0:02:21.7]}
11... e5 {[%clk 0:02:23.8]} 12. Bxb6 {[%clk 0:02:16.6]} 12... cxb6 {[%clk
0:02:21.2]} 13. b4 {[%clk 0:02:03.6]} 13... Qc7 {[%clk 0:01:41.9]} 14. Qd3
{[%clk 0:02:02.5]} 14... f5 {[%clk 0:01:32]} 15. bxa5 {[%clk 0:01:58.9]} 15...
fxe4 {[%clk 0:01:31.6]} 16. Nxe4 {[%clk 0:01:57.2]} 16... Bf5 {[%clk 0:01:30.5]}
17. Bf3 {[%clk 0:01:42.5]} 17... Qc5 {[%clk 0:01:21.7]} 18. Nxc5 {[%clk
0:01:23.5]} 18... Bxd3 {[%clk 0:01:20.6]} 19. Nxd3 {[%clk 0:01:22.1]} 19... e4
{[%clk 0:01:20.7]} 20. O-O-O {[%clk 0:01:01.8]} 20... Rac8+ {[%clk 0:00:56.8]}
21. Kb1 {[%clk 0:00:52]} 21... exd3 {[%clk 0:00:53.3]} 22. Rxd3 {[%clk
0:00:50.6]} 22... Rf4 {[%clk 0:00:53.1]} 23. Ne2 {[%clk 0:00:47.8]} 23... Rb4+
{[%clk 0:00:52.1]} 24. Rb3 {[%clk 0:00:47.8]} 24... bxa5 {[%clk 0:00:42.6]} 25.
Rxb4 {[%clk 0:00:45.6]} 25... axb4 {[%clk 0:00:43.5]} 26. Rc1 {[%clk 0:00:45.9]}
26... Rxc1+ {[%clk 0:00:41.5]} 27. Nxc1 {[%clk 0:00:42]} 27... Be5 {[%clk
0:00:42.4]} 28. d6 {[%clk 0:00:39.1]} 28... Bxd6 {[%clk 0:00:40]} 29. Bxb7
{[%clk 0:00:38.5]} 29... a5 {[%clk 0:00:40.5]} 30. g3 {[%clk 0:00:37.8]} 30...
Bc5 {[%clk 0:00:39.2]} 31. Nd3 {[%clk 0:00:36.9]} 31... Bd4 {[%clk 0:00:39]} 32.
Kc2 {[%clk 0:00:34.1]} 32... g5 {[%clk 0:00:38.4]} 33. Kb3 {[%clk 0:00:33.6]}
33... h6 {[%clk 0:00:36.9]} 34. Kc4 {[%clk 0:00:31.8]} 34... Bb6 {[%clk
0:00:35.2]} 35. Kb5 {[%clk 0:00:31.6]} 35... Bc7 {[%clk 0:00:34.8]} 36. Nc5
{[%clk 0:00:30.8]} 36... Kf7 {[%clk 0:00:33.5]} 37. Nb3 {[%clk 0:00:30.5]} 37...
Ke7 {[%clk 0:00:22.4]} 38. Nxa5 {[%clk 0:00:29.5]} 1-0

[Event "*** SCC Grand Prix: Titled Tuesday Blitz"]
[Site "Chess.com"]
[Date "2020.07.07"]
[Round "5"]
[White "Federtiu"]
[Black "dopolian"]
[Result "0-1"]
[WhiteElo "2553"]
[BlackElo "2425"]
[TimeControl "180+1"]
[EndTime "10:55:32 PDT"]
[Termination "dopolian won on time"]

1. e4 {[%clk 0:03:00.9]} 1... e5 {[%clk 0:02:59.4]} 2. Bc4 {[%clk 0:02:59.4]}
2... Nf6 {[%clk 0:02:58.5]} 3. d3 {[%clk 0:02:59.6]} 3... Bc5 {[%clk 0:02:51.6]}
4. Nc3 {[%clk 0:02:41.2]} 4... O-O {[%clk 0:02:38.5]} 5. Bg5 {[%clk 0:02:40.5]}
5... c6 {[%clk 0:02:29.9]} 6. a3 {[%clk 0:02:34.8]} 6... h6 {[%clk 0:02:09.5]}
7. h4 {[%clk 0:02:27.3]} 7... d6 {[%clk 0:01:58.2]} 8. Qd2 {[%clk 0:02:00.4]}
8... hxg5 {[%clk 0:01:51.6]} 9. hxg5 {[%clk 0:01:59.2]} 9... Ng4 {[%clk
0:01:42.4]} 10. Nh3 {[%clk 0:01:42.3]} 10... g6 {[%clk 0:01:39.7]} 11. Qe2
{[%clk 0:01:00.8]} 11... b5 {[%clk 0:01:27.7]} 12. Ba2 {[%clk 0:00:58.7]} 12...
Kg7 {[%clk 0:01:09.4]} 13. Nd1 {[%clk 0:00:42.5]} 13... Qb6 {[%clk 0:00:59.2]}
14. b4 {[%clk 0:00:38.2]} 14... Bd4 {[%clk 0:00:48.7]} 15. c3 {[%clk 0:00:37.7]}
15... Nxf2 {[%clk 0:00:49]} 16. Nhxf2 {[%clk 0:00:34.8]} 16... Bxf2+ {[%clk
0:00:47.4]} 17. Nxf2 {[%clk 0:00:30.7]} 17... a5 {[%clk 0:00:37.9]} 18. Ng4
{[%clk 0:00:24.1]} 18... Bxg4 {[%clk 0:00:36.7]} 19. Qxg4 {[%clk 0:00:23.2]}
19... Qe3+ {[%clk 0:00:37.3]} 20. Kf1 {[%clk 0:00:12.5]} 20... Qxd3+ {[%clk
0:00:37.5]} 21. Kf2 {[%clk 0:00:13]} 21... Qd2+ {[%clk 0:00:32.6]} 22. Kg1
{[%clk 0:00:07.5]} 22... Qe3+ {[%clk 0:00:16.3]} 23. Kf1 {[%clk 0:00:06.6]}
23... Na6 {[%clk 0:00:15.3]} 24. Rh3 {[%clk 0:00:04.9]} 24... Qd2 {[%clk
0:00:09.6]} 25. Kg1 {[%clk 0:00:02.2]} 25... axb4 {[%clk 0:00:08.4]} 26. cxb4
{[%clk 0:00:02]} 26... Nxb4 {[%clk 0:00:06.1]} 27. Rf1 {[%clk 0:00:01.8]} 27...
Nxa2 {[%clk 0:00:04.4]} 0-1

[Event "*** SCC Grand Prix: Titled Tuesday Blitz"]
[Site "Chess.com"]
[Date "2020.07.07"]
[Round "5"]
[White "Chesswizard_2007"]
[Black "Karina_Ivanova"]
[Result "1-0"]
[WhiteElo "2459"]
[BlackElo "2227"]
[TimeControl "180+1"]
[EndTime "10:55:32 PDT"]
[Termination "Chesswizard_2007 won on time"]

1. Nf3 {[%clk 0:03:00.2]} 1... Nf6 {[%clk 0:02:52.3]} 2. e3 {[%clk 0:02:52.4]}
2... c5 {[%clk 0:02:43.7]} 3. b3 {[%clk 0:02:31.1]} 3... g6 {[%clk 0:02:35.3]}
4. Bb2 {[%clk 0:02:29.7]} 4... Bg7 {[%clk 0:02:33]} 5. h4 {[%clk 0:02:28.6]}
5... h5 {[%clk 0:02:31.8]} 6. Be2 {[%clk 0:02:25.6]} 6... d5 {[%clk 0:02:28.9]}
7. c4 {[%clk 0:02:21.9]} 7... d4 {[%clk 0:02:16.3]} 8. exd4 {[%clk 0:02:21.5]}
8... Ng4 {[%clk 0:02:14.1]} 9. d3 {[%clk 0:02:21.1]} 9... Nc6 {[%clk 0:02:09.3]}
10. Nbd2 {[%clk 0:02:09.8]} 10... cxd4 {[%clk 0:02:04.6]} 11. a3 {[%clk
0:02:06.7]} 11... a5 {[%clk 0:02:01.2]} 12. O-O {[%clk 0:02:03.3]} 12... O-O
{[%clk 0:01:58.7]} 13. Ng5 {[%clk 0:01:58.7]} 13... e5 {[%clk 0:01:52.5]} 14.
Bf3 {[%clk 0:01:34.9]} 14... Qc7 {[%clk 0:01:34.1]} 15. Bd5 {[%clk 0:01:33.7]}
15... e4 {[%clk 0:01:24.5]} 16. g3 {[%clk 0:01:18.6]} 16... e3 {[%clk
0:01:23.7]} 17. Nde4 {[%clk 0:01:14.4]} 17... exf2+ {[%clk 0:00:18.7]} 18. Kh1
{[%clk 0:01:03.3]} 18... Ne3 {[%clk 0:00:17.2]} 19. Qe2 {[%clk 0:01:03.8]} 19...
Nxf1 {[%clk 0:00:14.1]} 20. Rxf1 {[%clk 0:01:04.7]} 20... Ne7 {[%clk 0:00:11.1]}
21. Bxf7+ {[%clk 0:00:59.4]} 21... Rxf7 {[%clk 0:00:10.6]} 22. Nxf7 {[%clk
0:01:00.3]} 22... Kxf7 {[%clk 0:00:10.6]} 23. Qxf2+ {[%clk 0:01:00.8]} 23... Bf5
{[%clk 0:00:10]} 24. Bxd4 {[%clk 0:00:58.7]} 24... Bxd4 {[%clk 0:00:09.3]} 25.
Qxd4 {[%clk 0:00:59.6]} 25... Kg8 {[%clk 0:00:07]} 26. Nf6+ {[%clk 0:00:53.3]}
26... Kf7 {[%clk 0:00:07]} 27. g4 {[%clk 0:00:50]} 27... Qc6+ {[%clk 0:00:06.2]}
28. Nd5 {[%clk 0:00:50.2]} 28... hxg4 {[%clk 0:00:04.6]} 29. h5 {[%clk
0:00:30.4]} 29... Nxd5 {[%clk 0:00:01.5]} 30. cxd5 {[%clk 0:00:31.3]} 30... Qd7
{[%clk 0:00:01.6]} 31. hxg6+ {[%clk 0:00:32.2]} 31... Kxg6 {[%clk 0:00:01.3]}
32. Qe5 {[%clk 0:00:32.8]} 32... Re8 {[%clk 0:00:01.3]} 33. Qd4 {[%clk
0:00:29.8]} 33... Rf8 {[%clk 0:00:02.2]} 34. Qb6+ {[%clk 0:00:28.3]} 1-0